bitfinex/quotes_SOLUSD_20260309
["timestamp","ask_amount","ask_price","bid_price","bid_amount"]
[1773060472113,0.63277269,83.964,83.944,11.9127037]
[1773060475335,0.63277269,83.964,83.939,11.91341331]
[1773060475636,0.63277269,83.964,83.94,0.63266241]
[1773060477419,0.63277269,83.964,83.942,0.63266241]
[1773060478542,0.63277269,83.964,83.943,11.91284562]
[1773060478956,4.82477569,83.98,83.944,0.63266241]
[1773060479152,0.63277269,83.969,83.944,0.63266241]
[1773060479828,0.63277269,83.959,83.924,11.91554263]
[1773060480224,0.63277269,83.959,83.925,0.63266241]
[1773060480946,0.63277269,83.959,83.897,3.69383402]
[1773060480947,0.63277269,83.949,83.916,0.63266241]
[1773060481247,0.63277269,83.956,83.921,0.63266241]
[1773060482138,0.28432314,83.969,83.931,0.63266241]
[1773060482139,0.63277269,83.969,83.931,0.63266241]
[1773060482439,47.80209101,84.03,83.917,101.29056089]
[1773060482440,0.63277269,83.976,83.941,0.63266241]
[1773060483042,0.63277269,83.976,83.942,41.69545637]
[1773060483244,0.63277269,83.976,83.943,0.54007655]
[1773060485737,0.63277269,83.976,83.945,0.54007655]
[1773060486549,0.51066716,83.985,83.951,0.54007655]
[1773060487744,0.51066716,84.0,83.97,4.36046826]
[1773060487936,0.51066716,84.0,83.971,0.54007655]
[1773060489946,0.51066716,84.0,83.973,0.54007655]
[1773060493246,0.51066716,84.0,83.975,0.54007655]
[1773060493647,5.10909883,84.024,83.974,41.67956748]
[1773060493648,0.51066716,84.014,83.981,0.54007655]
[1773060493850,0.2,84.03,83.981,0.54007655]
[1773060493851,0.51066716,84.009,83.981,0.54007655]
[1773060494047,0.51066716,83.989,83.974,11.90844785]
[1773060497463,0.51066716,83.999,83.975,0.54007655]
[1773060497752,0.51066716,83.999,83.97,4.36046826]
[1773060498744,0.51066716,83.999,83.969,0.54007655]
[1773060499154,0.51066716,83.999,83.969,63.34007655]
[1773060500765,0.51066716,83.999,83.97,16.26948338]
[1773060501170,0.51066716,83.999,83.97,16.80955993]
[1773060501367,0.51066716,83.999,83.971,0.54007655]
[1773060502191,0.51066716,83.999,83.972,11.90873148]
[1773060502365,0.51066716,83.999,83.973,0.54007655]
[1773060502963,0.51066716,83.997,83.973,0.54007655]
[1773060504170,11.90646282,83.988,83.97,59.9170159]
[1773060504347,0.51066716,83.979,83.943,0.54007655]
[1773060504548,0.51066716,83.969,83.943,0.54007655]
[1773060506866,0.51066716,83.967,83.944,11.9127037]
[1773060508063,0.51066716,83.967,83.944,12.45278025]
[1773060508269,0.51066716,83.967,83.945,0.54007655]
[1773060509052,0.51066716,83.967,83.946,11.91241988]
[1773060510051,0.51066716,83.965,83.946,11.91241988]
[1773060510769,0.51066716,83.972,83.946,41.6934696]
[1773060510959,0.51066716,83.972,83.947,0.54007655]
[1773060511272,0.51066716,83.969,83.947,0.54007655]
[1773060512556,0.51066716,83.969,83.941,11.91312945]
[1773060512781,0.51066716,83.959,83.934,0.54007655]
[1773060513450,0.51066716,83.959,83.936,0.49650877]
[1773060513853,0.48993298,83.964,83.936,0.49650877]
[1773060518081,0.48993298,83.975,83.941,0.49650877]
[1773060519076,4.36046826,83.97,83.941,0.49650877]
[1773060519683,4.35956444,83.97,83.941,0.49650877]
[1773060520284,4.35956444,83.97,83.943,0.49650877]
[1773060520778,4.84949742,83.97,83.943,0.49650877]
[1773060521077,0.48993298,83.96,83.943,0.49650877]
[1773060521282,0.48993298,83.968,83.943,0.49650877]
[1773060523177,11.90944061,83.967,83.944,11.9127037]
[1773060523483,0.48993298,83.959,83.94,11.91318164]
[1773060523983,0.48993298,83.959,83.941,0.49650877]
[1773060524560,0.48993298,83.959,83.931,62.8]
[1773060524561,4.35956444,83.95,83.931,62.8]
[1773060524756,0.48993298,83.949,83.913,0.49650877]
[1773060524960,0.48993298,83.949,83.921,0.49650877]
[1773060525160,0.48993298,83.959,83.921,0.49650877]
[1773060525378,47.60914403,84.018,83.941,0.49650877]
[1773060525379,0.48993298,83.969,83.941,0.49650877]
[1773060527279,0.48993298,83.969,83.943,0.49650877]
[1773060527781,0.48993298,83.979,83.943,0.49650877]
[1773060528879,0.4946709,83.969,83.943,0.49650877]
[1773060529381,4.35956444,83.97,83.945,0.49978466]
[1773060529771,4.85423534,83.97,83.945,0.49978466]
[1773060530189,0.4946709,83.968,83.927,0.49978466]
[1773060530377,4.85423534,83.96,83.931,0.49978466]
[1773060530575,0.4946709,83.96,83.931,0.49978466]
[1773060531074,0.4946709,83.981,83.941,0.49978466]
[1773060531381,5.10909883,83.994,83.943,0.49978466]
[1773060531382,0.4946709,83.977,83.943,0.49978466]
[1773060531581,4.35956444,83.97,83.943,0.49978466]
[1773060532377,4.85423534,83.97,83.943,0.49978466]
[1773060532564,0.4946709,83.969,83.943,0.49978466]
[1773060533671,0.4946709,83.967,83.945,0.49978466]
[1773060536395,0.4946709,83.967,83.946,11.91241988]
[1773060536802,0.4946709,83.965,83.946,11.91241988]
[1773060537486,0.4946709,83.965,83.942,11.91287561]
[1773060537794,0.4946709,83.965,83.942,12.41266027]
[1773060537999,0.4946709,83.965,83.943,0.49978466]
[1773060539399,0.4946709,83.989,83.951,0.49978466]
[1773060539778,0.4946709,83.969,83.944,11.9127037]
[1773060540183,0.4946709,83.969,83.945,0.49978466]
[1773060540783,0.4946709,83.969,83.946,11.91241988]
[1773060540984,0.4946709,83.969,83.947,0.49978466]
[1773060541800,0.4946709,83.985,83.951,0.49978466]
[1773060541980,4.35956444,83.99,83.961,0.49978466]
[1773060542179,0.4946709,83.989,83.961,0.49978466]
[1773060542884,4.35956444,83.99,83.963,0.49978466]
[1773060543089,11.90564671,83.994,83.963,0.49978466]
[1773060543287,12.36881982,83.994,83.963,0.49978466]
[1773060543601,4.82273755,84.0,83.963,0.49978466]
[1773060543801,0.46317311,83.999,83.963,0.49978466]
[1773060545101,0.46317311,83.998,83.965,0.47231515]
[1773060545984,4.35956444,83.99,83.965,0.47231515]
[1773060547286,4.35956444,83.99,83.967,0.47231515]
[1773060547597,4.82273755,83.99,83.967,0.47231515]
[1773060548500,0.46317311,83.999,83.967,0.47231515]
[1773060548703,0.46317311,83.999,83.971,0.47231515]
[1773060549406,0.46317311,83.999,83.973,0.47231515]
[1773060549701,0.46317311,83.999,83.972,11.90873148]
[1773060550085,0.46317311,83.997,83.972,11.90873148]
[1773060550981,0.46317311,83.997,83.972,12.38104663]
[1773060551184,0.46317311,83.997,83.973,0.47231515]
[1773060551386,0.46317311,83.989,83.973,0.47231515]
[1773060551585,0.46317311,83.989,83.972,11.90873148]
[1773060552287,0.46317311,83.989,83.958,0.47231515]
[1773060552491,0.46317311,83.979,83.958,0.47231515]
[1773060553105,0.46317311,83.979,83.96,0.47231515]
[1773060553487,0.46317311,83.979,83.962,0.47231515]
[1773060553689,0.46317311,83.989,83.962,0.47231515]
[1773060555605,0.46317311,83.989,83.963,41.68502791]
[1773060555793,0.46317311,83.989,83.964,0.47231515]
[1773060559310,0.46317311,83.989,83.966,0.47231515]
[1773060560214,4.35956444,83.99,83.966,0.47231515]
[1773060560523,0.46317311,83.989,83.966,0.47231515]
[1773060560898,16.72752417,84.0,83.966,0.47231515]
[1773060561211,0.46317311,83.999,83.966,0.47231515]
[1773060561596,0.46317311,83.999,83.97,4.35956444]
[1773060561909,0.46317311,83.999,83.971,0.47231515]
[1773060562110,0.46317311,84.005,83.971,0.47231515]
[1773060562314,0.46317311,83.999,83.971,0.47231515]
[1773060563696,0.46317311,83.999,83.973,0.47231515]
[1773060564007,0.46317311,84.01,83.973,0.47231515]
[1773060564314,0.46317311,84.009,83.973,0.47231515]
[1773060566902,0.46317311,83.999,83.974,11.90844785]
[1773060567818,11.90504535,83.998,83.974,11.90844785]
[1773060568116,0.46317311,83.997,83.974,11.90844785]
[1773060568316,0.46317311,83.989,83.955,0.47231515]
[1773060570610,0.46317311,83.987,83.957,0.47231515]
[1773060572919,0.46317311,83.987,83.959,0.47231515]
[1773060574204,0.46317311,83.987,83.96,11.91043353]
[1773060574409,0.46317311,83.987,83.961,0.49353678]
[1773060577248,0.46317311,83.987,83.962,11.91014982]
[1773060577406,0.46317311,83.987,83.963,0.49353678]
[1773060579835,0.46317311,83.987,83.956,62.8]
[1773060579836,0.46926173,83.979,83.957,0.49353678]
[1773060580824,0.46926173,83.979,83.956,11.9108697]
[1773060580825,4.35956444,84.0,83.961,0.49353678]
[1773060581008,0.46926173,83.999,83.961,0.49353678]
[1773060581829,0.46926173,83.999,83.973,0.49353678]
[1773060582329,11.90504535,83.998,83.973,0.49353678]
[1773060583531,12.37430708,83.998,83.973,0.49353678]
[1773060583824,0.46926173,83.997,83.973,0.49353678]
[1773060584029,0.46926173,83.997,83.968,29.77310829]
[1773060584030,0.46926173,83.989,83.962,0.49353678]
[1773060584525,0.46926173,83.969,83.948,29.78011697]
[1773060584724,0.46926173,83.969,83.949,12.40553096]
[1773060584924,0.46926173,83.969,83.95,0.49353678]
[1773060585229,4.35701041,83.97,83.939,0.49353678]
[1773060585230,0.46926173,83.963,83.939,0.49353678]
[1773060586021,0.46926173,83.963,83.931,29.78618563]
[1773060586022,0.46926173,83.963,83.941,0.49353678]
[1773060586931,0.46926173,83.963,83.942,11.91298753]
[1773060587135,0.46926173,83.963,83.943,0.49353678]
[1773060587522,11.90960022,83.966,83.943,0.49353678]
[1773060587728,12.37886195,83.966,83.943,0.49353678]
[1773060588430,0.46926173,83.965,83.943,0.49353678]
[1773060589326,0.46926173,83.965,83.945,0.49353678]
[1773060589631,0.46926173,83.97,83.945,0.49353678]
[1773060589827,0.46926173,83.969,83.945,0.49353678]
[1773060590840,11.90915695,83.969,83.947,0.4896976]
[1773060591029,12.36228894,83.969,83.947,0.4896976]
[1773060591226,0.45313199,83.968,83.947,0.4896976]
[1773060595327,0.45313199,83.966,83.947,0.4896976]
[1773060596648,0.45313199,83.966,83.943,0.4896976]
[1773060597223,0.45313199,83.966,83.943,12.40254322]
[1773060597438,0.45313199,83.964,83.944,0.4896976]
[1773060600128,0.45313199,83.959,83.938,0.4896976]
[1773060600535,4.35701041,83.97,83.938,0.4896976]
[1773060601048,4.35701041,83.96,83.938,0.4896976]
[1773060602528,0.21000288,83.97,83.94,0.4896976]
[1773060602737,5.10909883,83.984,83.951,0.4896976]
[1773060602738,11.90702991,83.984,83.951,0.4896976]
[1773060603138,4.35701041,83.98,83.951,0.4896976]
[1773060604641,0.21000288,83.978,83.953,0.47274252]
[1773060606451,0.21000288,83.978,83.926,0.28432314]
[1773060606452,0.21000288,83.969,83.941,0.47274252]
[1773060606638,0.21000288,83.967,83.941,12.38583464]
[1773060607044,0.21000288,83.967,83.942,0.47274252]
[1773060607754,0.21000288,83.959,83.921,0.47274252]
[1773060607951,0.21000288,83.959,83.92,4.35701041]
[1773060607952,0.21000288,83.959,83.923,0.47274252]
[1773060608648,11.91071726,83.958,83.923,0.47274252]
[1773060608854,12.12072014,83.958,83.925,0.47274252]
[1773060609253,0.21000288,83.957,83.925,0.47274252]
[1773060609451,0.21000288,83.929,83.904,0.47274252]
[1773060610157,4.35701041,83.92,83.904,0.47274252]
[1773060611040,16.27322592,83.92,83.904,0.47274252]
[1773060611239,11.91553461,83.925,83.904,0.47274252]
[1773060611640,4.35701041,83.92,83.904,0.47274252]
[1773060612356,11.91553461,83.925,83.904,0.47274252]
[1773060614054,4.35701041,83.92,83.904,0.47274252]
[1773060614255,11.91553461,83.925,83.904,0.47274252]
[1773060614660,4.35701041,83.92,83.891,0.47274252]
[1773060615243,4.56701329,83.92,83.891,0.47274252]
[1773060615561,16.27182522,83.93,83.892,0.47274252]
[1773060616361,16.27182522,83.93,83.901,0.47274252]
[1773060616858,4.35701041,83.93,83.901,0.47274252]
[1773060617040,11.9137057,83.937,83.901,0.47274252]
[1773060617760,4.35701041,83.95,83.921,0.47274252]
[1773060618342,16.26892653,83.95,83.922,11.9158266]
[1773060618544,0.21000288,83.949,83.923,0.47274252]
[1773060618749,16.26892653,83.95,83.923,0.47274252]
[1773060618750,4.35701041,83.94,83.923,0.47274252]
[1773060619145,0.21000288,83.944,83.923,0.47274252]
[1773060620455,16.47892941,83.95,83.925,0.47274252]
[1773060621058,0.21000288,83.949,83.925,0.47274252]
[1773060622276,11.91199418,83.949,83.927,0.47274252]
[1773060624478,11.91199418,83.949,83.869,14.09334745]
[1773060624479,0.45921796,83.939,83.869,12.90101179]
[1773060624654,0.45921796,83.928,83.891,11.92022982]
[1773060624968,41.69197964,83.949,83.9,4.35701041]
[1773060624969,4.35701041,83.94,83.9,4.35701041]
[1773060625150,4.35701041,83.94,83.892,0.14216157]
[1773060625467,11.91199418,83.949,83.91,4.35701041]
[1773060626250,11.91083062,83.958,83.92,4.35701041]
[1773060626466,11.91083062,83.958,83.923,0.47274252]
[1773060626664,0.45921796,83.949,83.923,0.47274252]
[1773060626866,0.45921796,83.949,83.922,11.9158266]
[1773060627267,0.45921796,83.949,83.922,12.38856912]
[1773060627465,0.45921796,83.949,83.923,0.47274252]
[1773060628871,4.35701041,83.95,83.925,0.47274252]
[1773060631172,0.45921796,83.948,83.926,12.3880012]
[1773060631361,0.45921796,83.948,83.927,0.47274252]
[1773060632062,0.45921796,83.948,83.92,11.91600644]
[1773060632264,11.91199418,83.949,83.918,0.47274252]
[1773060632265,4.35701041,83.94,83.918,0.47274252]
[1773060632670,0.45921796,83.948,83.918,0.47274252]
[1773060633082,0.45921796,83.948,83.917,11.91653657]
[1773060633083,12.40756444,83.947,83.92,0.46194726]
[1773060633271,0.49528646,83.946,83.92,0.46194726]
[1773060635865,0.49528646,83.944,83.92,0.46194726]
[1773060636066,0.49528646,83.944,83.921,0.46194726]
[1773060636781,4.35701041,83.93,83.917,0.46194726]
[1773060637368,4.35701041,83.93,83.91,11.91743337]
[1773060637572,4.35701041,83.93,83.911,0.46194726]
[1773060637771,4.85229687,83.93,83.911,0.46194726]
[1773060637964,4.85229687,83.93,83.905,0.46194726]
[1773060637965,0.49528646,83.928,83.905,0.46194726]
[1773060638172,0.49528646,83.919,83.894,0.46194726]
[1773060638494,4.35701041,83.91,83.89,0.56194726]
[1773060638672,4.35701041,83.91,83.89,0.1]
[1773060638673,0.49528646,83.909,83.89,0.1]
[1773060638871,0.49528646,83.899,83.871,12.38501959]
[1773060639071,0.49528646,83.899,83.872,0.46194726]
[1773060639474,4.85229687,83.91,83.872,0.46194726]
[1773060639681,0.49528646,83.899,83.872,0.46194726]
[1773060640193,0.49528646,83.897,83.872,0.46194726]
[1773060640485,4.35701041,83.89,83.872,0.46194726]
[1773060641176,0.49528646,83.897,83.872,0.46194726]
[1773060641684,4.35701041,83.89,83.872,0.46194726]
[1773060641887,0.49528646,83.897,83.872,0.46194726]
[1773060642392,4.35701041,83.89,83.874,0.46194726]
[1773060642586,4.35701041,83.89,83.87,0.1]
[1773060642787,0.49528646,83.889,83.87,0.1]
[1773060643194,0.49528646,83.879,83.87,0.1]
[1773060643696,0.49528646,83.879,83.86,0.1]
[1773060643986,4.37006143,83.88,83.861,0.46194726]
[1773060644197,41.72727055,83.878,83.85,0.1]
[1773060644372,0.49528646,83.877,83.85,0.1]
[1773060644980,0.49528646,83.877,83.85,4.47006143]
[1773060645671,11.9220773,83.878,83.85,4.47006143]
[1773060645672,4.37006143,83.89,83.86,4.37006143]
[1773060645979,11.92001023,83.893,83.86,4.37006143]
[1773060646176,11.92001023,83.893,83.861,0.46976191]
[1773060646379,11.91762818,83.91,83.881,0.46976191]
[1773060646898,0.48370337,83.913,83.881,0.46976191]
[1773060647272,4.37006143,83.94,83.901,0.46976191]
[1773060647466,4.37006143,83.94,83.886,0.14216157]
[1773060647467,11.91312945,83.941,83.911,0.46976191]
[1773060648599,0.48370337,83.947,83.913,0.46976191]
[1773060648769,0.48370337,83.947,83.921,0.46976191]
[1773060649581,11.91142663,83.953,83.921,0.46976191]
[1773060650581,11.91142663,83.953,83.923,0.46976191]
[1773060654485,11.91142663,83.953,83.922,11.9158266]
[1773060654486,0.48370337,83.962,83.931,0.46976191]
[1773060654669,0.48370337,83.968,83.941,0.46976191]
[1773060654870,0.48370337,83.979,83.951,0.46976191]
[1773060655082,0.48370337,83.979,83.924,41.70439921]
[1773060655083,0.48370337,83.979,83.941,0.46976191]
[1773060655684,0.48370337,83.969,83.941,0.46976191]
[1773060656982,11.90929878,83.968,83.941,0.46976191]
[1773060657186,0.48370337,83.967,83.943,0.46976191]
[1773060658969,0.48370337,83.967,83.935,0.46976191]
[1773060659369,29.77102696,83.975,83.941,0.46976191]
[1773060659370,11.90958245,83.966,83.941,0.46976191]
[1773060660379,0.48370337,83.965,83.93,4.37006143]
[1773060660597,0.48370337,83.939,83.905,11.91818522]
[1773060661488,4.37006143,83.94,83.881,57.20681129]
[1773060661489,0.48370337,83.937,83.91,4.37006143]
[1773060661687,11.91247129,83.946,83.92,4.37006143]
[1773060662078,0.48370337,83.947,83.92,4.37006143]
[1773060662485,0.48370337,83.947,83.921,0.46976191]
[1773060663599,11.91241988,83.946,83.923,0.4882866]
[1773060665392,12.36318498,83.946,83.923,0.4882866]
[1773060665798,4.82082653,83.96,83.931,0.4882866]
[1773060665986,0.4507651,83.965,83.931,0.4882866]
[1773060666191,0.4507651,83.949,83.919,11.91611735]
[1773060666386,11.90958245,83.966,83.908,0.4882866]
[1773060666387,0.4507651,83.939,83.908,0.4882866]
[1773060666587,0.4507651,83.939,83.908,12.40602651]
[1773060667188,0.4507651,83.939,83.909,0.4882866]
[1773060667494,0.4507651,83.939,83.91,4.85834803]
[1773060668599,0.4507651,83.937,83.911,11.91738866]
[1773060670400,0.4507651,83.937,83.911,12.40567526]
[1773060670601,11.91383911,83.936,83.912,0.4882866]
[1773060670809,0.4507651,83.935,83.912,0.4882866]
[1773060672009,0.4507651,83.935,83.906,11.91797873]
[1773060672399,0.4507651,83.935,83.907,0.4882866]
[1773060672811,0.4507651,83.933,83.908,12.40610134]
[1773060673005,0.4507651,83.94,83.911,0.4882866]
[1773060673201,0.4507651,83.939,83.911,0.4882866]
[1773060673913,0.4507651,83.938,83.911,0.4882866]
[1773060674387,0.4507651,83.919,83.882,0.4882866]
[1773060674591,41.69694659,83.939,83.891,0.4882866]
[1773060674592,0.4507651,83.926,83.891,0.4882866]
[1773060674787,0.4507651,83.938,83.902,0.4882866]
[1773060675402,0.4507651,83.938,83.901,41.71583175]
[1773060675403,0.4507651,83.944,83.911,0.4882866]
[1773060675595,0.4507651,83.944,83.901,41.71583175]
[1773060675596,11.91269994,83.945,83.921,0.4882866]
[1773060675798,0.4507651,83.958,83.931,0.4882866]
[1773060676106,29.77363448,83.967,83.931,0.4882866]
[1773060676107,12.36093002,83.962,83.931,0.4882866]
[1773060676613,0.4507651,83.962,83.931,0.4882866]
[1773060676801,0.4507651,83.962,83.933,0.4882866]
[1773060676991,11.91029168,83.961,83.933,0.4882866]
[1773060677194,0.4507651,83.976,83.941,0.4882866]
[1773060677507,4.37006143,83.97,83.941,0.4882866]
[1773060677812,0.4507651,83.969,83.941,0.4882866]
[1773060678612,12.35892933,83.976,83.941,0.4882866]
[1773060679600,0.4507651,83.976,83.943,0.4882866]
[1773060679792,11.90681554,83.986,83.961,0.4882866]
[1773060679998,0.4507651,83.992,83.962,0.4882866]
[1773060681717,0.4507651,83.99,83.963,11.91000797]
[1773060682800,0.4507651,83.99,83.964,0.4882866]
[1773060683418,0.4507651,83.989,83.963,11.91000797]
[1773060683812,0.4507651,83.996,83.971,0.4882866]
[1773060684713,0.4507651,83.996,83.964,0.4882866]
[1773060685418,0.4507651,83.989,83.959,11.91051055]
[1773060685625,0.4507651,83.989,83.951,30.26749426]
[1773060685626,0.4507651,83.989,83.951,0.4882866]
[1773060685801,0.4507651,83.987,83.952,11.91156851]
[1773060686202,0.4507651,83.987,83.952,12.39985511]
[1773060686420,0.4507651,83.987,83.953,0.4882866]
[1773060687818,0.4507651,83.969,83.933,0.4882866]
[1773060688012,0.4507651,83.969,83.936,11.91373444]
[1773060689101,0.4507651,83.969,83.941,0.4882866]
[1773060689914,11.90929878,83.968,83.941,12.40130169]
[1773060690110,0.4507651,83.967,83.941,12.40130169]
[1773060690634,0.4507651,83.967,83.942,0.4882866]
[1773060692109,12.3578513,83.984,83.961,0.4882866]
[1773060692918,12.3578513,83.984,83.97,4.37006143]
[1773060692919,0.4507651,83.984,83.97,4.37006143]
[1773060693119,0.4507651,83.984,83.961,0.4882866]
[1773060693428,0.4507651,83.984,83.97,4.37006143]
[1773060693724,29.76319406,83.997,83.961,0.4882866]
[1773060693725,0.48055307,83.982,83.961,0.4882866]
[1773060693933,0.48055307,83.982,83.96,4.37006143]
[1773060695648,0.48055307,83.982,83.961,11.91029168]
[1773060695816,11.90348653,84.009,83.98,4.37006143]
[1773060696012,4.37006143,84.0,83.961,41.68602088]
[1773060696241,4.37006143,83.99,83.957,11.91077228]
[1773060696423,4.37006143,83.99,83.94,1.19132713]
[1773060696424,4.37006143,84.0,83.961,0.48700279]
[1773060696914,4.37006143,83.99,83.954,12.39828754]
[1773060697117,4.37006143,83.99,83.955,0.48700279]
[1773060697336,4.37006143,84.0,83.961,0.48700279]
[1773060697728,0.48055307,83.997,83.961,0.48700279]
[1773060698532,0.48055307,83.997,83.963,0.48700279]
[1773060699133,0.48055307,83.997,83.971,0.48700279]
[1773060699310,0.48055307,84.004,83.971,0.48700279]
[1773060700014,0.48055307,84.002,83.973,0.48700279]
[1773060700630,0.48055307,84.011,83.981,0.48700279]
[1773060700808,0.48055307,84.011,83.98,4.37006143]
[1773060700809,0.48055307,84.011,83.989,0.48700279]
[1773060701212,0.759,84.015,83.991,0.48700279]
[1773060701634,12.66177712,84.015,83.991,0.48700279]
[1773060703737,12.66177712,84.015,83.993,0.48700279]
[1773060703936,0.48055307,84.014,83.99,4.35413787]
[1773060704132,0.48055307,84.014,83.986,11.90669907]
[1773060704320,0.48055307,84.014,83.987,0.48700279]
[1773060705524,0.48055307,84.012,83.988,11.90646282]
[1773060706336,0.48055307,84.009,83.972,29.7718287]
[1773060706523,0.48055307,83.999,83.974,0.48700279]
[1773060707115,0.48055307,83.999,83.971,62.8]
[1773060708440,0.4928404,83.997,83.971,62.8]
[1773060709455,0.4928404,83.989,83.962,11.91011968]
[1773060710445,0.4928404,83.987,83.962,12.38666934]
[1773060710642,0.4928404,83.997,83.97,4.35413787]
[1773060710819,11.90507216,83.998,83.971,0.47654966]
[1773060711022,29.75905885,84.009,83.971,0.47654966]
[1773060711023,12.39735836,84.002,83.971,0.47654966]
[1773060712039,0.4928404,84.002,83.971,0.47654966]
[1773060712232,0.4928404,84.009,83.971,0.47654966]
[1773060712432,0.4928404,84.009,83.956,0.28432314]
[1773060712433,0.4928404,84.011,83.983,0.47654966]
[1773060712629,11.90334483,84.01,83.983,0.47654966]
[1773060713226,0.4928404,84.009,83.983,0.47654966]
[1773060714542,0.4928404,84.009,83.985,0.47654966]
[1773060715846,0.759,84.015,83.98,4.35413787]
[1773060715847,0.4928404,84.007,83.98,0.47654966]
[1773060716949,0.4928404,84.005,83.98,12.38410338]
[1773060717150,0.4928404,84.012,83.981,0.47654966]
[1773060717646,0.4928404,84.009,83.981,0.47654966]
[1773060718545,0.759,84.015,83.98,16.26169159]
[1773060718546,11.90320315,84.011,83.983,0.47654966]
[1773060718853,0.4928404,84.01,83.983,0.47654966]
[1773060719548,11.90320315,84.011,83.983,0.47654966]
[1773060719549,11.90274725,84.015,83.983,0.47654966]
[1773060719748,11.90102841,84.027,84.001,0.47654966]
[1773060719928,4.55413787,84.03,84.001,0.47654966]
[1773060719929,0.2,84.03,84.001,0.47654966]
[1773060720552,0.2,84.03,84.013,0.47654966]
[1773060720758,0.2,84.03,84.021,0.47654966]
[1773060721146,7.71837242,84.039,84.021,0.47654966]
[1773060721956,7.71837242,84.039,84.023,0.47654966]
[1773060722253,0.4928404,84.037,84.01,4.35413787]
[1773060723452,0.4928404,84.037,84.002,0.28432314]
[1773060723953,0.45996951,84.035,84.004,0.28432314]
[1773060724143,0.45996951,84.035,84.005,0.47819712]
[1773060724533,0.45996951,84.029,84.0,4.35413787]
[1773060724852,0.45996951,84.029,84.001,0.47819712]
[1773060725572,0.45996951,84.029,84.007,0.47819712]
[1773060726450,7.71837242,84.039,84.0,4.35413787]
[1773060726451,7.71837242,84.039,84.021,0.47819712]
[1773060730057,0.45996951,84.037,84.014,11.90271496]
[1773060731252,0.45996951,84.037,84.014,12.38091208]
[1773060731760,0.45996951,84.037,84.014,11.90271496]
[1773060731944,0.45996951,84.037,84.015,0.47819712]
[1773060732551,0.45996951,84.037,84.014,11.90271496]
[1773060732552,7.71837242,84.039,84.021,0.47819712]
[1773060732755,6.69924855,84.039,84.021,0.47819712]
[1773060733157,6.69924855,84.039,84.027,0.18954884]
[1773060733158,6.10969971,84.039,84.027,0.18954884]
[1773060733360,6.10969971,84.039,84.022,11.9016448]
[1773060734965,0.5,84.038,84.018,11.90208644]
[1773060735344,0.5,84.036,84.004,29.76026382]
[1773060735545,0.5,84.036,84.005,41.66418665]
[1773060735850,6.10969971,84.039,84.03,4.35413787]
[1773060736447,6.10969971,84.039,84.02,4.35413787]
[1773060737374,6.10969971,84.039,84.021,11.90178645]
[1773060737564,6.10969971,84.039,84.021,41.65625259]
[1773060737750,0.2,84.04,84.021,11.90178645]
[1773060738066,0.2,84.04,84.007,62.8]
[1773060738067,0.5,84.039,84.011,11.90320315]
[1773060739486,11.89937885,84.038,84.011,11.90320315]
[1773060739777,0.5,84.037,84.011,11.90320315]
[1773060741582,0.5,84.037,84.011,41.66121102]
[1773060742174,0.5,84.035,84.011,11.90320315]
[1773060742552,0.5,84.035,84.011,74.70320315]
[1773060742960,0.5,84.035,84.011,62.8]
[1773060744175,0.2,84.04,84.011,62.8]
[1773060744176,0.5,84.033,84.011,62.8]
[1773060744378,0.5,84.029,83.988,59.57849727]
[1773060744581,0.5,84.009,83.984,11.90697946]
[1773060745076,0.5,83.999,83.971,12.0510128]
[1773060745266,0.5,83.999,83.97,16.26301993]
[1773060745779,0.5,83.999,83.97,46.03555774]
[1773060746154,0.5,83.999,83.971,0.28432314]
[1773060746360,0.5,84.007,83.98,4.35413787]
[1773060748270,29.75593181,84.017,83.971,0.28432314]
[1773060748271,0.5,84.026,83.99,4.35413787]
[1773060748672,0.5,84.026,83.981,41.67609339]
[1773060748673,0.5,84.026,84.0,4.35413787]
[1773060748866,0.5,84.029,83.99,4.35413787]
[1773060749187,0.5,84.019,83.99,4.35413787]
[1773060750167,0.5,84.019,83.982,0.28432314]
[1773060750374,0.5,84.009,83.983,11.90717168]
[1773060752095,0.5,84.018,83.99,4.35413787]
[1773060752283,0.5,84.018,83.991,11.90603755]
[1773060752790,0.5,84.016,83.991,11.90603755]
[1773060754790,0.5,84.016,83.991,71.48453482]
[1773060756666,0.5,84.009,83.991,59.57849727]
[1773060757672,0.5,84.008,83.982,41.67558957]
[1773060758571,11.90287475,84.014,83.99,4.35413787]
[1773060758869,0.5,84.015,83.982,41.67558957]
[1773060759389,0.5,84.013,83.982,41.67558957]
[1773060760084,4.35413787,84.01,83.982,11.90731347]
[1773060760288,0.5,84.009,83.982,11.90731347]
[1773060760686,0.5,84.009,83.982,71.48581074]
[1773060763487,0.5,84.008,83.982,71.48581074]
[1773060763789,0.5,84.008,83.982,11.90731347]
[1773060763969,0.5,84.008,83.982,41.67559714]
[1773060764990,0.5,84.007,83.982,11.90731347]
[1773060766691,0.5,84.007,83.982,71.48581074]
[1773060767791,0.5,83.999,83.97,4.3551661]
[1773060768505,0.5,83.999,83.967,59.57849727]